bitfinex-derivatives/quotes_SOLF0:USTF0_20240827
["timestamp","ask_amount","ask_price","bid_price","bid_amount"]
[1724766491505,0.04738965,154.55,154.53,24.85]
[1724766493507,0.04738965,154.55,154.51,24.8971844]
[1724766493807,0.04738965,154.55,154.52,3.2352]
[1724766494010,0.04738965,154.55,154.51,24.8971844]
[1724766494210,0.04738965,154.55,154.52,3.2351]
[1724766494411,3.28208965,154.55,154.52,3.2351]
[1724766495111,0.04738965,154.55,154.51,24.8971844]
[1724766495706,3.28208965,154.55,154.52,3.2352]
[1724766496107,0.04738965,154.55,154.52,28.0281229]
[1724766496711,0.04738965,154.55,154.54,3.2349]
[1724766496908,0.04738965,154.55,154.54,28.0849]
[1724766497823,1.2828,154.64,154.58,24.85]
[1724766498214,24.85,154.68,154.61,3.2332]
[1724766498215,3.2445629,154.68,154.61,3.2332]
[1724766498516,0.74799971,154.67,154.61,3.2332]
[1724766498719,0.04511488,154.66,154.62,0.04345271]
[1724766499121,3.2327,154.65,154.62,0.04345271]
[1724766499417,3.2327,154.65,154.62,3.27665271]
[1724766499813,0.04511488,154.66,154.62,28.18460686]
[1724766500015,0.04511488,154.66,154.64,24.85]
[1724766500243,0.74762588,154.74,154.64,28.09311117]
[1724766500411,0.74762588,154.74,154.7,24.85]
[1724766500615,2.5479,154.76,154.7,24.85]
[1724766501025,2.5479,154.76,154.67,24.85]
[1724766501318,0.04961587,154.73,154.7,0.04506887]
[1724766501512,3.2311,154.72,154.7,0.04506887]
[1724766501719,0.04961587,154.73,154.7,0.04506887]
[1724766503123,3.2311,154.72,154.7,0.04506887]
[1724766503515,3.2313,154.71,154.7,0.04506887]
[1724766504219,3.2312,154.72,154.7,0.04506887]
[1724766504518,0.04961587,154.73,154.7,0.04506887]
[1724766504720,3.2313,154.71,154.7,0.04506887]
[1724766504920,0.04961587,154.73,154.7,0.04506887]
[1724766505113,0.04961587,154.73,154.7,24.89506887]
[1724766506722,0.04961587,154.73,154.72,24.85]
[1724766507125,4.4833,154.81,154.72,24.85]
[1724766507422,224.0,154.88,154.78,24.85]
[1724766507423,29.83,154.86,154.78,24.85]
[1724766507619,1.2539,154.85,154.76,24.85]
[1724766508127,1.2539,154.85,154.79,0.04259746]
[1724766508128,0.04626485,154.82,154.79,0.04259746]
[1724766508512,3.2294,154.8,154.79,0.04259746]
[1724766511321,3.2294,154.8,154.72,24.85]
[1724766511322,3.2306,154.75,154.71,1.2107]
[1724766511624,3.2306,154.75,154.7,24.85]
[1724766512022,3.2306,154.75,154.67,6.5554]
[1724766512023,3.2306,154.75,154.69,31.04]
[1724766512233,0.04767497,154.74,154.7,3.27398095]
[1724766512533,0.04767497,154.74,154.7,0.04258095]
[1724766513324,3.2313,154.71,154.7,0.04258095]
[1724766514431,31.04,154.73,154.62,1.2622]
[1724766514432,3.2324,154.66,154.62,1.2622]
[1724766514926,3.2326,154.65,154.62,1.2622]
[1724766515326,0.04766428,154.65,154.62,4.54325587]
[1724766516520,3.28036428,154.65,154.62,1.31005587]
[1724766516725,0.04766428,154.65,154.62,1.31005587]
[1724766517030,3.2314,154.71,154.64,31.04]
[1724766517226,1.3061,154.72,154.66,31.04]
[1724766517430,1.3061,154.72,154.62,1.2622]
[1724766517431,1.3061,154.72,154.64,31.04]
[1724766517735,1.3061,154.72,154.62,32.3022]
[1724766517931,31.04,154.71,154.62,32.3022]
[1724766518133,0.04865348,154.68,154.65,0.04477193]
[1724766518734,3.2322,154.67,154.65,0.04477193]
[1724766518931,0.04865348,154.68,154.65,0.04477193]
[1724766519337,3.2324,154.66,154.65,0.04477193]
[1724766519530,0.04865348,154.68,154.65,0.04477193]
[1724766520633,3.28065348,154.68,154.65,0.04477193]
[1724766520835,0.04865348,154.68,154.65,0.04477193]
[1724766522233,0.04865348,154.68,154.66,3.2322]
[1724766522739,0.04865348,154.68,154.65,0.04477193]
[1724766522942,0.04865348,154.68,154.66,3.2324]
[1724766523133,342.4567,154.86,154.67,36.02]
[1724766523334,3.30598467,154.83,154.72,31.04]
[1724766523542,3.2307,154.75,154.72,31.04]
[1724766524041,3.27984451,154.75,154.72,31.08871854]
[1724766524290,3.2307,154.74,154.72,31.08871854]
[1724766524833,0.04914451,154.75,154.72,31.08871854]
[1724766525032,0.04914451,154.75,154.74,31.04]
[1724766527344,0.04914451,154.75,154.74,34.2707]
[1724766527946,2.559,154.83,154.74,31.04]
[1724766528149,2.559,154.83,154.72,31.08871854]
[1724766528150,2.559,154.83,154.77,31.04]
[1724766528347,1.237,154.82,154.73,31.04]
[1724766528545,32.277,154.82,154.71,31.04]
[1724766528745,37.257,154.82,154.71,31.04]
[1724766529047,0.04462132,154.78,154.75,0.04880196]
[1724766529455,3.2302,154.77,154.75,0.04880196]
[1724766529749,0.04462132,154.78,154.75,0.04880196]
[1724766529958,0.04462132,154.78,154.68,36.02]
[1724766530144,34.25936633,154.79,154.68,36.02]
[1724766530572,34.25936633,154.79,154.73,3.2309]
[1724766530950,0.04851753,154.78,154.74,0.04119052]
[1724766532049,3.2303,154.76,154.74,0.04119052]
[1724766532254,0.04851753,154.78,154.74,0.04119052]
[1724766532852,0.04851753,154.78,154.75,31.04]
[1724766533149,0.04851753,154.78,154.74,0.04119052]
[1724766533850,0.04851753,154.78,154.76,3.2302]
[1724766534052,0.04851753,154.78,154.75,31.04]
[1724766534448,0.04851753,154.78,154.77,3.2301]
[1724766534651,4.98,154.86,154.75,31.04]
[1724766534849,9.5386318,154.87,154.79,3.2295]
[1724766535262,32.3336,154.86,154.75,31.04]
[1724766535556,3.2289,154.83,154.78,3.2297]
[1724766535784,0.04298858,154.82,154.79,0.04251345]
[1724766536150,3.2293,154.81,154.79,0.04251345]
[1724766536344,0.04298858,154.82,154.79,0.04251345]
[1724766536556,3.2294,154.81,154.79,0.04251345]
[1724766536755,0.04298858,154.82,154.79,0.04251345]
[1724766537260,3.2294,154.8,154.79,0.04251345]
[1724766537447,0.04298858,154.82,154.79,0.04251345]
[1724766538757,3.2294,154.8,154.79,0.04251345]
[1724766540365,0.04298858,154.82,154.75,3.2304]
[1724766540558,26.11608858,154.82,154.75,3.2304]
[1724766540769,31.09608858,154.82,154.75,3.2304]
[1724766540957,3.2298,154.79,154.75,3.2304]
[1724766541252,3.27569787,154.79,154.75,3.276243]
[1724766541458,0.04589787,154.79,154.75,24.865843]
[1724766541652,0.04589787,154.79,154.75,0.045843]
[1724766543782,0.04589787,154.79,154.76,3.2302]
[1724766544056,0.04589787,154.79,154.76,24.82]
[1724766544366,0.04589787,154.79,154.78,28.0499]
[1724766546063,0.04589787,154.79,154.78,3.2299]
[1724766547655,0.04589787,154.79,154.75,0.045843]
[1724766548364,0.04589787,154.79,154.76,3.2302]
[1724766548658,0.04589787,154.79,154.75,0.045843]
[1724766549161,0.04589787,154.79,154.76,24.82]
[1724766550381,0.04589787,154.79,154.77,3.2299]
[1724766550868,0.04589787,154.79,154.77,3.2301]
[1724766551063,0.04589787,154.79,154.76,24.82]
[1724766551263,0.04589787,154.79,154.78,24.82]
[1724766551468,0.04589787,154.79,154.75,0.045843]
[1724766552062,0.04589787,154.79,154.76,24.82]
[1724766552480,0.04589787,154.79,154.77,3.29799625]
[1724766552663,0.04589787,154.79,154.78,3.2299]
[1724766553771,0.04589787,154.79,154.76,24.82]
[1724766554063,3.27569787,154.79,154.76,24.82]
[1724766554268,0.04589787,154.79,154.76,24.82]
[1724766554470,3.23,154.78,154.75,0.045843]
[1724766554865,0.04589787,154.79,154.75,0.045843]
[1724766555374,3.2299,154.78,154.75,0.045843]
[1724766556771,3.2299,154.78,154.75,3.276143]
[1724766557377,0.04589787,154.79,154.76,3.2301]
[1724766557691,0.04589787,154.79,154.76,28.0501]
[1724766558266,3.27559787,154.79,154.76,28.0501]
[1724766558569,0.04589787,154.79,154.75,0.045843]
[1724766560067,3.2299,154.78,154.75,0.045843]
[1724766560564,3.27569787,154.79,154.76,3.2302]
[1724766562164,0.04589787,154.79,154.75,0.045843]
[1724766562375,0.04589787,154.79,154.78,24.82]
[1724766562970,0.04589787,154.79,154.78,28.0499]
[1724766563277,0.04589787,154.79,154.78,3.2299]
[1724766565473,0.04589787,154.79,154.76,24.82]
[1724766565975,0.04589787,154.79,154.75,0.045843]
[1724766566377,3.27569787,154.79,154.76,3.2301]
[1724766566983,0.04589787,154.79,154.75,0.045843]
[1724766567476,3.2302,154.77,154.75,0.045843]
[1724766567675,0.04589787,154.79,154.75,0.045843]
[1724766568070,3.2303,154.76,154.75,0.045843]
[1724766568475,30.72745597,154.79,154.75,0.045843]
[1724766568476,2.65209787,154.79,154.75,0.045843]
[1724766568674,3.2299,154.78,154.75,0.045843]
[1724766568869,0.04589787,154.79,154.75,0.045843]
[1724766569282,3.27569787,154.79,154.75,3.276243]
[1724766569580,0.04589787,154.79,154.75,3.276243]
[1724766569776,3.2301,154.78,154.75,0.045843]
[1724766569977,0.04589787,154.79,154.75,0.045843]
[1724766570375,3.2303,154.76,154.75,0.045843]
[1724766570576,0.04589787,154.79,154.75,0.045843]
[1724766571072,3.2302,154.77,154.75,0.045843]
[1724766571277,0.04589787,154.79,154.75,0.045843]
[1724766571679,3.2301,154.77,154.75,0.045843]
[1724766572788,3.2303,154.76,154.75,0.045843]
[1724766572982,0.04589787,154.79,154.75,0.045843]
[1724766573379,0.04589787,154.79,154.75,3.276143]
[1724766573608,0.04589787,154.79,154.75,0.045843]
[1724766573782,0.04589787,154.79,154.76,3.2302]
[1724766574087,0.04589787,154.79,154.75,0.045843]
[1724766574780,3.27569787,154.79,154.76,3.2302]
[1724766579192,0.04589787,154.79,154.77,3.23]
[1724766580090,0.04589787,154.79,154.76,24.82]
[1724766580888,0.04589787,154.79,154.75,0.045843]
[1724766581386,3.2299,154.78,154.75,3.276143]
[1724766582194,0.04589787,154.79,154.75,0.045843]
[1724766582584,0.04589787,154.79,154.77,3.23]
[1724766583197,3.27559787,154.79,154.76,3.2302]
[1724766585094,0.04589787,154.79,154.75,0.045843]
[1724766585999,24.86589787,154.79,154.75,0.045843]
[1724766586193,1.2516,154.78,154.68,29.68]
[1724766586398,3.2307,154.75,154.71,3.2312]
[1724766586697,3.2307,154.75,154.7,27.97077704]
[1724766586898,3.2299,154.78,154.72,24.82]
[1724766587098,0.04361544,154.77,154.74,24.82]
[1724766587298,0.04361544,154.77,154.76,24.82]
[1724766587897,0.04361544,154.77,154.76,28.0503]
[1724766588894,0.04361544,154.77,154.74,24.86752699]
[1724766589101,0.04361544,154.77,154.74,0.04752699]
[1724766589492,3.27371544,154.77,154.74,3.27812699]
[1724766589696,0.04361544,154.77,154.74,0.04752699]
[1724766590148,0.04361544,154.77,154.75,3.2305]
[1724766591799,0.04361544,154.77,154.74,0.04752699]
[1724766592260,24.82,154.76,154.71,1.29277129]
[1724766592410,24.82,154.73,154.6,1.3332]
[1724766592608,24.82,154.7,154.61,6.73180343]
[1724766592899,24.82,154.67,154.62,1.29304963]
[1724766593206,24.86468294,154.66,154.63,0.04426229]
[1724766593503,3.2328,154.64,154.63,0.04426229]
[1724766594204,0.04468294,154.66,154.57,2.13620473]
[1724766594400,24.82,154.64,154.58,1.29366683]
[1724766594903,28.0528,154.64,154.59,3.2338]
[1724766595305,0.04244497,154.63,154.6,0.04543626]
[1724766595503,0.04244497,154.63,154.61,3.2334]
[1724766596106,0.04244497,154.63,154.62,3.2332]
[1724766596505,0.04244497,154.63,154.62,28.0532]
[1724766599908,0.04244497,154.63,154.62,34.2632]
[1724766600112,4.4495,154.69,154.65,3.2324]
[1724766600426,1.2177,154.69,154.59,31.03]
[1724766600608,1.2177,154.69,154.61,3.2332]
[1724766600809,1.2177,154.69,154.59,31.03]
[1724766601119,3.2327,154.65,154.62,0.04721811]
[1724766601307,0.04436276,154.66,154.62,0.04721811]
[1724766601505,0.04436276,154.66,154.62,31.07721811]
[1724766601703,0.04436276,154.66,154.63,3.31003505]
[1724766601916,0.04436276,154.66,154.65,3.2326]
[1724766602114,0.04436276,154.66,154.65,6.42527397]
[1724766602815,3.2311,154.72,154.68,3.2318]
[1724766603015,3.2311,154.72,154.67,31.03]
[1724766603717,0.04676334,154.71,154.68,0.04125204]
[1724766604408,0.04676334,154.71,154.69,3.2317]
[1724766605123,0.04676334,154.71,154.7,3.2315]
[1724766605517,255.03,154.83,154.69,31.03]
[1724766605821,3.2298,154.79,154.75,3.2303]
[1724766606616,3.27344891,154.79,154.75,3.2720114]
[1724766606924,3.27344891,154.79,154.75,0.0417114]
[1724766607319,3.2301,154.78,154.75,0.0417114]
[1724766607820,3.2303,154.76,154.75,0.0417114]
[1724766608421,31.03,154.76,154.67,4.76]
[1724766608612,1.2193,154.75,154.67,4.76]
[1724766608814,2.4795,154.75,154.68,3.2319]
[1724766609014,2.4795,154.75,154.67,4.76]
[1724766609517,2.4795,154.75,154.69,0.04662239]
[1724766609518,0.04243955,154.73,154.69,0.04662239]
[1724766609913,0.04243955,154.73,154.72,3.2311]
[1724766611318,0.04243955,154.73,154.72,34.2611]
[1724766611720,0.04243955,154.73,154.72,3.2311]
[1724766612523,3.2298,154.79,154.75,3.2303]
[1724766613426,0.04196136,154.79,154.76,3.2303]
[1724766613816,0.04196136,154.79,154.78,3.2299]
[1724766616022,0.04196136,154.79,154.77,31.03]
[1724766616023,1.2708,154.87,154.81,3.2292]
[1724766616219,3.2286,154.84,154.77,31.03]
[1724766616615,3.2286,154.84,154.81,3.2292]
[1724766617026,3.27612276,154.84,154.81,3.27437228]
[1724766617229,0.04752276,154.84,154.82,3.229]
[1724766617616,0.04752276,154.84,154.81,0.04517228]
[1724766617820,0.04752276,154.84,154.82,3.229]
[1724766618521,0.04752276,154.84,154.83,3.2288]
[1724766619228,0.04752276,154.84,154.81,0.04517228]
[1724766619530,0.04752276,154.84,154.76,4.76]
[1724766619734,3.2294,154.81,154.78,3.2298]
[1724766620137,0.04752276,154.84,154.79,3.2296]
[1724766620334,4.76,154.85,154.79,31.03]
[1724766620535,0.04536216,154.84,154.8,0.0487333]
[1724766621534,0.04536216,154.84,154.83,3.2288]
[1724766623031,0.04536216,154.84,154.83,34.2588]
[1724766623531,0.04536216,154.84,154.8,1.2972333]
[1724766623736,0.04536216,154.84,154.8,0.0487333]
[1724766626327,3.2289,154.83,154.8,3.2781333]
[1724766627133,0.04536216,154.84,154.8,0.0487333]
[1724766627335,0.04536216,154.84,154.81,31.03]
[1724766627531,0.04536216,154.84,154.83,3.2288]
[1724766629142,0.04536216,154.84,154.82,3.229]
[1724766629339,0.04536216,154.84,154.81,31.03]
[1724766629741,0.04536216,154.84,154.83,34.2588]
[1724766630145,7.3636,154.9,154.83,34.2588]
[1724766630146,3.2278,154.88,154.85,3.2283]
[1724766630441,7.3636,154.9,154.83,31.03]
[1724766631236,0.0435795,154.88,154.85,31.07612048]
[1724766631638,0.0435795,154.88,154.87,3.2279]
[1724766632141,0.0435795,154.88,154.87,34.2579]
[1724766632440,0.0435795,154.88,154.85,31.07612048]
[1724766633739,0.0435795,154.88,154.85,0.04612048]
[1724766634248,0.0435795,154.88,154.85,31.07612048]
[1724766634748,0.0435795,154.88,154.87,3.228]
[1724766634944,0.0435795,154.88,154.85,31.07612048]
[1724766635150,0.0435795,154.88,154.87,31.03]
[1724766635841,0.0435795,154.88,154.85,31.07612048]
[1724766636140,3.228,154.87,154.85,0.04612048]
[1724766636340,0.0435795,154.88,154.85,0.04612048]
[1724766636545,1.2803,154.87,154.85,0.04612048]
[1724766636745,3.2286,154.84,154.79,31.03]
[1724766636942,4.44477752,154.87,154.75,35.83]
[1724766637344,4.44477752,154.87,154.75,39.11272295]
[1724766637345,3.2285,154.85,154.75,39.11272295]
[1724766637537,4.44477752,154.87,154.78,31.03]
[1724766637748,0.0411004,154.84,154.81,0.04709508]
[1724766637943,0.0411004,154.84,154.81,3.27629508]
[1724766638142,0.0411004,154.84,154.81,0.04709508]
[1724766640747,0.0411004,154.84,154.83,31.03]
[1724766641147,0.0411004,154.84,154.83,34.2588]
[1724766641452,3.2274,154.9,154.83,31.03]
[1724766641644,9.2628,154.91,154.86,3.2282]
[1724766642349,3.27536169,154.9,154.87,0.04421642]
[1724766643344,0.04796169,154.9,154.87,0.04421642]
[1724766644052,0.04796169,154.9,154.87,3.27211642]
[1724766645450,0.04796169,154.9,154.88,31.03]
[1724766646055,0.04796169,154.9,154.89,3.2276]
[1724766646254,1.2178,154.94,154.88,31.03]
[1724766646445,31.03,155.01,154.87,0.04421642]
[1724766646446,3.2264,154.95,154.91,3.227]
[1724766646952,3.2265,154.95,154.9,31.03]
[1724766647456,0.04512052,154.94,154.91,0.04825652]
[1724766648949,0.04512052,154.94,154.93,3.2267]
[1724766650448,56.85,155.05,154.96,3.226]
[1724766650652,3.25061196,155.07,154.96,3.226]
[1724766650653,1.2257,155.04,154.96,31.03]
[1724766651351,1.2257,155.04,154.97,3.2259]
[1724766651550,3.27115915,155.01,154.98,0.04503178]
[1724766652149,3.2253,155.0,154.98,0.04503178]
[1724766652660,0.04595915,155.01,154.98,0.04503178]
[1724766653152,0.04595915,155.01,154.99,3.2254]
[1724766654657,0.04595915,155.01,154.98,0.04503178]
[1724766655260,0.04595915,155.01,154.98,3.27053178]
[1724766656557,3.27105915,155.01,154.98,3.27053178]
[1724766656955,3.2254,155.0,154.98,0.04503178]
[1724766657753,3.27115915,155.01,154.98,0.04503178]
[1724766658358,3.27115915,155.01,154.98,3.27073178]
[1724766659162,3.2255,154.99,154.98,0.04503178]
[1724766660160,24.79,155.02,154.91,26.0528]
[1724766660359,24.79,155.0,154.91,24.79]
[1724766660554,24.79,154.97,154.89,28.0174]
[1724766660858,3.22620203,154.96,154.89,24.79]
[1724766661258,0.04613518,154.94,154.91,0.04958791]
[1724766661655,0.04613518,154.94,154.93,24.79]
[1724766662355,0.04613518,154.94,154.91,24.83958791]
[1724766662758,0.04613518,154.94,154.93,28.0167]
[1724766662952,1.322,155.03,154.93,24.79]
[1724766663156,1.322,155.03,154.96,24.79]
[1724766663355,3.2251,155.01,154.97,3.2258]
[1724766663560,26.112,155.03,154.94,24.79]
[1724766664058,3.26953742,155.0,154.97,0.04347519]
[1724766664260,0.04423742,155.0,154.97,0.04347519]
[1724766665369,3.2255,154.99,154.97,0.04347519]
[1724766665552,0.04423742,155.0,154.97,0.04347519]
[1724766665757,3.2257,154.98,154.97,0.04347519]
[1724766666666,3.2257,154.98,154.87,1.2863]
[1724766666667,24.79,154.98,154.87,1.2863]
[1724766666860,24.79,154.94,154.87,4.5141]
[1724766667363,3.2271,154.92,154.87,1.2863]
[1724766667755,0.04876286,154.91,154.88,0.04097648]
[1724766668460,0.04876286,154.91,154.89,3.2274]
[1724766668666,0.04876286,154.91,154.88,0.04097648]
[1724766670070,3.27596286,154.91,154.88,0.04097648]
[1724766670367,0.04876286,154.91,154.88,0.04097648]
[1724766670759,0.04876286,154.91,154.88,3.26877648]
[1724766671156,0.04876286,154.91,154.88,0.04097648]
[1724766671966,0.04876286,154.91,154.89,3.2275]
[1724766673165,0.04876286,154.91,154.9,3.2274]
[1724766673772,0.04876286,154.91,154.88,0.04097648]
[1724766674365,0.04876286,154.91,154.9,3.2274]
[1724766675373,0.04876286,154.91,154.89,3.2275]
[1724766676770,3.27596286,154.91,154.88,3.26867648]
[1724766676971,3.27596286,154.91,154.88,0.04097648]
[1724766676972,0.04876286,154.91,154.88,0.04097648]
[1724766678669,0.04876286,154.91,154.9,3.2274]
[1724766679871,4.92,154.96,154.89,34.20743957]
[1724766680071,4.92,154.98,154.89,31.0]
[1724766680268,1.2427,155.0,154.89,34.30072225]
[1724766680474,6.1627,155.0,154.92,31.0]
[1724766680779,6.1627,155.0,154.89,3.30072225]
[1724766680780,3.2252,155.01,154.94,31.0]
[1724766680973,0.04897092,154.99,154.96,0.04184957]
[1724766681283,0.04897092,154.99,154.97,3.2258]
[1724766681668,0.04897092,154.99,154.96,0.04184957]
[1724766682073,0.04897092,154.99,154.97,3.2258]
[1724766682781,0.04897092,154.99,154.96,0.04184957]
[1724766683282,3.27457092,154.99,154.96,0.04184957]
[1724766683687,3.27457092,154.99,154.96,3.26794957]
[1724766685179,3.2258,154.98,154.96,0.04184957]
[1724766686287,3.27457092,154.99,154.96,0.04184957]
[1724766686587,0.04897092,154.99,154.96,0.04184957]
[1724766686789,0.04897092,154.99,154.96,3.26774957]
[1724766686989,0.04897092,154.99,154.96,0.04184957]
[1724766687177,3.2257,154.98,154.96,0.04184957]
[1724766687486,0.04897092,154.99,154.96,0.04184957]
[1724766687679,3.2259,154.97,154.96,0.04184957]
[1724766688986,24.79,154.98,154.88,1.2698]
[1724766689185,24.79,154.96,154.9,3.2272]
[1724766689388,3.2267,154.94,154.88,1.2698]
[1724766689785,24.79,154.96,154.92,3.2269]
[1724766689984,24.79,154.96,154.92,3.27575998]
[1724766689985,3.2264,154.95,154.92,3.27575998]
[1724766690293,0.0465888,154.96,154.92,0.04885998]
[1724766691084,31.0,154.95,154.92,0.04885998]
[1724766691283,3.2267,154.93,154.92,0.04885998]
[1724766691684,31.0,154.93,154.83,65.04752406]
[1724766691884,31.0,154.91,154.8,31.0]
[1724766692087,31.0,154.91,154.83,3.2288]
[1724766692088,4.86,154.9,154.83,3.2288]
[1724766692287,4.86,154.9,154.8,34.30502775]
[1724766692494,4.86,154.9,154.82,31.0]
[1724766692688,0.04609922,154.88,154.85,3.2283]
[1724766693083,3.27389922,154.88,154.84,0.04362072]
[1724766693392,0.04609922,154.88,154.84,0.04362072]
[1724766693583,3.2283,154.86,154.84,0.04362072]
[1724766693784,0.04609922,154.88,154.84,0.04362072]
[1724766693985,3.2284,154.85,154.84,0.04362072]
[1724766694595,31.04609922,154.88,154.84,0.04362072]
[1724766694995,0.04609922,154.88,154.84,0.04362072]
[1724766695494,3.228,154.87,154.84,0.04362072]
[1724766696900,3.228,154.87,154.84,3.27222072]
[1724766697304,0.04609922,154.88,154.86,3.2282]
[1724766697695,0.04609922,154.88,154.84,0.04362072]
[1724766698293,3.2284,154.85,154.84,0.04362072]
[1724766700595,35.90609922,154.88,154.84,0.04362072]
[1724766700596,3.2283,154.86,154.84,0.04362072]
[1724766702299,0.04609922,154.88,154.84,0.04362072]
[1724766703001,3.27409922,154.88,154.84,3.27212072]
[1724766703307,0.04609922,154.88,154.84,0.04362072]
[1724766703505,0.04609922,154.88,154.87,3.228]
[1724766703998,3.2268,154.93,154.89,3.2274]
[1724766704499,4.86,154.94,154.85,32.2391]
[1724766704695,3.2273,154.91,154.87,3.2278]
[1724766704895,3.2766001,154.91,154.87,3.27050338]
[1724766706205,0.0493001,154.91,154.87,0.04270338]
[1724766706704,0.0493001,154.91,154.88,3.2276]
[1724766707105,0.0493001,154.91,154.87,0.04270338]
[1724766708304,0.0493001,154.91,154.88,3.2276]
[1724766708510,0.0493001,154.91,154.87,0.04270338]
[1724766708811,3.2274,154.9,154.87,0.04270338]
[1724766709500,3.2278,154.88,154.87,0.04270338]
[1724766717010,28.0178,154.88,154.87,0.04270338]
[1724766719010,24.79,154.85,154.77,1.2824]
[1724766719214,24.79,154.83,154.77,1.2824]
[1724766719410,3.2296,154.8,154.75,3.24473427]
[1724766719715,3.2296,154.8,154.74,24.79]
[1724766720013,0.0491514,154.79,154.75,0.04291954]
[1724766720603,0.0491514,154.79,154.76,24.79]
[1724766721010,0.0491514,154.79,154.75,0.04291954]
[1724766721011,0.0491514,154.79,154.78,28.0199]
[1724766721210,28.04688999,154.96,154.81,24.79]
[1724766721211,27.3997,154.9,154.81,24.79]
[1724766721517,3.2281,154.87,154.83,3.2286]
[1724766722216,3.27536303,154.87,154.84,3.2286]
[1724766723117,0.04726303,154.87,154.85,3.2284]
[1724766723721,0.04726303,154.87,154.86,3.2282]
[1724766724823,7.3072,154.95,154.86,24.79]
[1724766725522,7.3072,154.95,154.87,3.2279]
[1724766725718,0.04599631,154.93,154.87,3.2279]
[1724766725920,0.04599631,154.93,154.89,0.04225041]
[1724766726116,3.2272,154.91,154.89,0.04225041]
[1724766726821,3.2274,154.9,154.89,0.04225041]
[1724766728026,3.2272,154.91,154.89,0.04225041]
[1724766728418,0.04599631,154.93,154.89,0.04225041]
[1724766728622,24.79,154.92,154.89,0.04225041]
[1724766728825,24.79,154.9,154.89,0.04225041]
[1724766729227,28.0174,154.9,154.89,0.04225041]
[1724766729725,3.2274,154.9,154.89,0.04225041]
[1724766732431,3.2283,154.86,154.81,1.2364]
[1724766732633,24.79,154.86,154.77,24.79]
[1724766732837,24.79,154.86,154.8,3.2292]
[1724766733029,24.79,154.86,154.77,24.79]
[1724766733232,24.79,154.86,154.76,4.72]
[1724766733433,0.04772696,154.83,154.79,0.04504251]
[1724766733633,24.79,154.82,154.79,0.04504251]
[1724766733831,3.2292,154.81,154.79,0.04504251]
[1724766734242,3.2294,154.8,154.79,0.04504251]
[1724766734543,0.04772696,154.83,154.79,0.04504251]
[1724766734843,3.2294,154.81,154.79,0.04504251]
[1724766736343,0.04772696,154.83,154.79,3.27464251]
[1724766736737,0.04772696,154.83,154.79,0.04504251]
[1724766737349,28.0194,154.8,154.79,0.04504251]
[1724766738040,3.2294,154.8,154.79,0.04504251]
[1724766739136,3.2309,154.73,154.69,4.4712]
[1724766739336,24.79,154.73,154.65,8.08535291]
[1724766739636,3.2311,154.72,154.68,3.2318]
[1724766739846,24.79,154.75,154.66,24.79]
[1724766740143,0.04590551,154.72,154.69,3.27538177]
[1724766740339,0.04590551,154.72,154.69,0.04378177]
[1724766742446,0.04590551,154.72,154.69,0.04378177]
[1724766742647,0.04590551,154.72,154.7,3.2314]
[1724766742847,0.04590551,154.72,154.69,0.04378177]
[1724766744344,24.79,154.71,154.69,0.04378177]
[1724766744742,0.04590551,154.72,154.69,0.04378177]
[1724766746237,3.2314,154.71,154.69,0.04378177]
[1724766748754,3.27700551,154.72,154.69,0.04378177]
[1724766749141,3.2314,154.71,154.69,0.04378177]
[1724766749349,0.04590551,154.72,154.69,0.04378177]
[1724766749350,24.83590551,154.72,154.69,0.04378177]
[1724766749850,3.2315,154.7,154.69,0.04378177]
[1724766750151,28.0215,154.7,154.69,0.04378177]
[1724766750348,29.51,154.7,154.69,0.04378177]
[1724766750544,0.04590551,154.72,154.69,0.04378177]
[1724766750545,24.83590551,154.72,154.69,0.04378177]
[1724766750749,0.04590551,154.72,154.69,0.04378177]
[1724766751250,24.83590551,154.72,154.69,0.04378177]
[1724766751451,3.2315,154.7,154.69,0.04378177]
[1724766753540,24.83590551,154.72,154.69,0.04378177]
[1724766753741,0.04590551,154.72,154.69,0.04378177]
[1724766754146,3.2314,154.71,154.69,0.04378177]